[Event "FIDE World Rapid Chess Championship 2021"]
[White "Vastrukhin, Oleg"]
[Black "Moroni, Luca Jr"]
[WhiteFideId "4192770"]
[BlackFideId "865834"]
[WhiteElo "2382"]
[BlackElo "2519"]
[Result "0-1"]
[Round "11"]
[TimeControl "900+10"]
[Date "2021.12.28"]
[WhiteClock "0:04:03"]
[BlackClock "0:05:23"]

1. Nf3 {[%clk 0:15:00]}  g6 {[%clk 0:15:00]} 2. d4 {[%clk 0:15:00]}  Bg7 {[%clk 0:15:00]} 3. e4 {[%clk 0:15:00]}  d6 {[%clk 0:15:00]} 4. Nc3 {[%clk 0:15:00]}  Nf6 {[%clk 0:15:00]} 5. Bg5 {[%clk 0:15:00]}  c6 {[%clk 0:14:17]} 6. Qd2 {[%clk 0:15:28]}  h6 {[%clk 0:14:17]} 7. Be3 {[%clk 0:15:28]}  d5 {[%clk 0:14:17]} 8. exd5 {[%clk 0:15:28]}  cxd5 {[%clk 0:14:17]} 9. Ne5 {[%clk 0:15:28]}  Nc6 {[%clk 0:14:03]} 10. Nxc6 {[%clk 0:14:10]}  bxc6 {[%clk 0:14:03]} 11. h3 {[%clk 0:14:10]}  Bf5 {[%clk 0:14:03]} 12. Be2 {[%clk 0:14:10]}  h5 {[%clk 0:14:03]} 13. b3 {[%clk 0:14:13]}  Qd7 {[%clk 0:12:07]} 14. f3 {[%clk 0:14:13]}  h4 {[%clk 0:11:36]} 15. Na4 {[%clk 0:12:22]}  Nh5 {[%clk 0:11:36]} 16. O-O-O {[%clk 0:12:22]}  Qd6 {[%clk 0:11:36]} 17. Nc5 {[%clk 0:11:32]}  O-O {[%clk 0:09:54]} 18. Rhe1 {[%clk 0:08:53]}  a5 {[%clk 0:09:54]} 19. a4 {[%clk 0:07:11]}  Rfe8 {[%clk 0:09:22]} 20. Bd3 {[%clk 0:07:11]}  Bxd3 {[%clk 0:09:22]} 21. Qxd3 {[%clk 0:07:11]}  Ng3 {[%clk 0:09:22]} 22. c3 {[%clk 0:06:33]}  Nf5 {[%clk 0:07:48]} 23. f4 {[%clk 0:04:09]}  Rab8 {[%clk 0:07:29]} 24. Bd2 {[%clk 0:04:09]}  Rxb3 {[%clk 0:05:23]} 25. Kc2 {[%clk 0:04:03]}  Nxd4+ {[%clk 0:05:23]} 26. cxd4 {[%clk 0:04:03]}  Rxd3 {[%clk 0:05:23]} 27. Kxd3 {[%clk 0:04:03]}  g5 {[%clk 0:05:23]} 28. f5 {[%clk 0:04:03]}  e5 {[%clk 0:05:23]} 29. fxe6 {[%clk 0:04:03]}  fxe6 {[%clk 0:05:23]} 0-1


[Site "http://www.Chess.com"]

[Event "FIDE World Rapid Chess Championship 2021"]
[White "Oparin, Grigoriy"]
[Black "Heberla, Bartlomiej"]
[WhiteFideId "24125890"]
[BlackFideId "1115120"]
[WhiteElo "2725"]
[BlackElo "2437"]
[Result "1/2-1/2"]
[Round "11"]
[TimeControl "900+10"]
[Date "2021.12.28"]
[WhiteClock "0:01:13"]
[BlackClock "0:03:04"]

1. d4 {[%clk 0:15:00]}  d5 {[%clk 0:15:00]} 2. c4 {[%clk 0:15:00]}  e6 {[%clk 0:15:00]} 3. Nf3 {[%clk 0:15:00]}  Nf6 {[%clk 0:15:00]} 4. g3 {[%clk 0:15:00]}  Be7 {[%clk 0:15:00]} 5. Bg2 {[%clk 0:15:00]}  O-O {[%clk 0:15:00]} 6. Nc3 {[%clk 0:15:00]}  dxc4 {[%clk 0:15:00]} 7. Ne5 {[%clk 0:15:00]}  c5 {[%clk 0:15:22]} 8. dxc5 {[%clk 0:16:14]}  Qxd1+ {[%clk 0:15:22]} 9. Nxd1 {[%clk 0:16:14]}  Bxc5 {[%clk 0:15:22]} 10. Nxc4 {[%clk 0:16:14]}  Nc6 {[%clk 0:15:22]} 11. Be3 {[%clk 0:16:14]}  Bb4+ {[%clk 0:15:22]} 12. Nc3 {[%clk 0:16:14]}  Bd7 {[%clk 0:14:19]} 13. O-O-O {[%clk 0:16:27]}  Bxc3 {[%clk 0:10:29]} 14. bxc3 {[%clk 0:16:10]}  Nd5 {[%clk 0:10:29]} 15. Bc5 {[%clk 0:16:17]}  Rfd8 {[%clk 0:08:25]} 16. Kb2 {[%clk 0:16:17]}  b6 {[%clk 0:08:24]} 17. Ba3 {[%clk 0:13:29]}  Rab8 {[%clk 0:08:24]} 18. Nd6 {[%clk 0:13:12]}  Na5 {[%clk 0:05:54]} 19. c4 {[%clk 0:11:02]}  Nf6 {[%clk 0:05:54]} 20. Bb4 {[%clk 0:10:18]}  Bc6 {[%clk 0:05:08]} 21. f3 {[%clk 0:07:30]}  Nb7 {[%clk 0:01:44]} 22. e4 {[%clk 0:07:04]}  Nxd6 {[%clk 0:01:44]} 23. Bxd6 {[%clk 0:07:04]}  Ba4 {[%clk 0:01:44]} 24. Rd2 {[%clk 0:07:04]}  Rbc8 {[%clk 0:01:44]} 25. Rc1 {[%clk 0:07:04]}  Ne8 {[%clk 0:01:44]} 26. Bf4 {[%clk 0:07:04]}  e5 {[%clk 0:01:44]} 27. Be3 {[%clk 0:05:43]}  Rxd2+ {[%clk 0:01:52]} 28. Bxd2 {[%clk 0:05:43]}  Nd6 {[%clk 0:01:52]} 29. Bf1 {[%clk 0:05:43]}  Bd7 {[%clk 0:01:52]} 30. Bb4 {[%clk 0:05:43]}  Nb7 {[%clk 0:01:52]} 31. f4 {[%clk 0:04:10]}  f6 {[%clk 0:02:21]} 32. fxe5 {[%clk 0:04:10]}  fxe5 {[%clk 0:02:21]} 33. Bc3 {[%clk 0:04:10]}  Re8 {[%clk 0:02:21]} 34. Bb4 {[%clk 0:04:10]}  Bc6 {[%clk 0:02:21]} 35. c5 {[%clk 0:04:10]}  Nxc5 {[%clk 0:02:50]} 36. Bxc5 {[%clk 0:01:34]}  bxc5 {[%clk 0:02:50]} 37. Rxc5 {[%clk 0:01:34]}  Bxe4 {[%clk 0:02:50]} 38. Rc7 {[%clk 0:01:34]}  Rb8+ {[%clk 0:02:50]} 39. Kc3 {[%clk 0:01:34]}  Rb7 {[%clk 0:02:50]} 40. Rc5 {[%clk 0:01:34]}  Re7 {[%clk 0:02:50]} 41. Bc4+ {[%clk 0:01:34]}  Kf8 {[%clk 0:02:50]} 42. Rc8+ {[%clk 0:01:13]}  Re8 {[%clk 0:03:04]} 43. Rc7 {[%clk 0:01:13]}  Re7 {[%clk 0:03:04]} 44. Rc8+ {[%clk 0:01:13]} 1/2-1/2


[Site "http://www.Chess.com"]

[Event "FIDE World Rapid Chess Championship 2021"]
[White "Harikrishna, Pentala"]
[Black "Jakubowski, Krzysztof"]
[WhiteFideId "5007003"]
[BlackFideId "1112848"]
[WhiteElo "2705"]
[BlackElo "2399"]
[Result "1-0"]
[Round "11"]
[TimeControl "900+10"]
[Date "2021.12.28"]
[WhiteClock "0:02:56"]
[BlackClock "0:01:30"]

1. e4 {[%clk 0:15:00]}  c5 {[%clk 0:15:00]} 2. Nf3 {[%clk 0:15:00]}  d6 {[%clk 0:15:00]} 3. Bb5+ {[%clk 0:15:00]}  Nd7 {[%clk 0:15:00]} 4. O-O {[%clk 0:15:00]}  Nf6 {[%clk 0:15:00]} 5. Re1 {[%clk 0:15:00]}  a6 {[%clk 0:15:08]} 6. Bxd7+ {[%clk 0:15:34]}  Bxd7 {[%clk 0:15:08]} 7. e5 {[%clk 0:15:34]}  dxe5 {[%clk 0:15:08]} 8. Nxe5 {[%clk 0:15:34]}  Be6 {[%clk 0:15:08]} 9. Nc3 {[%clk 0:15:50]}  g6 {[%clk 0:13:28]} 10. Qf3 {[%clk 0:15:50]}  Rb8 {[%clk 0:13:28]} 11. Nd3 {[%clk 0:14:29]}  Qc8 {[%clk 0:11:51]} 12. Nf4 {[%clk 0:11:08]}  Bg4 {[%clk 0:09:58]} 13. Qe3 {[%clk 0:11:08]}  Qc6 {[%clk 0:08:59]} 14. h3 {[%clk 0:09:18]}  Bf5 {[%clk 0:08:59]} 15. g4 {[%clk 0:08:11]}  g5 {[%clk 0:07:43]} 16. Qe5 {[%clk 0:06:54]}  Rd8 {[%clk 0:05:48]} 17. Qxf5 {[%clk 0:06:54]}  gxf4 {[%clk 0:05:48]} 18. d3 {[%clk 0:06:54]}  h5 {[%clk 0:05:48]} 19. g5 {[%clk 0:06:54]}  Rg8 {[%clk 0:05:00]} 20. Bxf4 {[%clk 0:05:57]}  h4 {[%clk 0:05:00]} 21. Re2 {[%clk 0:05:40]}  Rg6 {[%clk 0:04:31]} 22. Rae1 {[%clk 0:05:40]}  Nd5 {[%clk 0:03:17]} 23. Ne4 {[%clk 0:03:21]}  e6 {[%clk 0:03:17]} 24. Nf6+ {[%clk 0:03:21]}  Nxf6 {[%clk 0:03:17]} 25. Rxe6+ {[%clk 0:03:21]}  fxe6 {[%clk 0:03:17]} 26. Qxg6+ {[%clk 0:03:21]}  Kd7 {[%clk 0:03:17]} 27. Qf7+ {[%clk 0:02:56]}  Kc8 {[%clk 0:01:30]} 28. Qxf6 {[%clk 0:02:56]}  Re8 {[%clk 0:01:30]} 29. g6 {[%clk 0:02:56]} 1-0


[Site "http://www.Chess.com"]

[Event "FIDE World Rapid Chess Championship 2021"]
[White "Saraci, Nderim"]
[Black "Jumabayev, Rinat"]
[WhiteFideId "6351921"]
[BlackFideId "13702661"]
[WhiteElo "2414"]
[BlackElo "2562"]
[Result "1/2-1/2"]
[Round "11"]
[TimeControl "900+10"]
[Date "2021.12.28"]
[WhiteClock "0:00:22"]
[BlackClock "0:05:10"]

1. d4 {[%clk 0:15:00]}  Nf6 {[%clk 0:15:00]} 2. Nf3 {[%clk 0:15:00]}  e6 {[%clk 0:15:00]} 3. c4 {[%clk 0:15:00]}  b6 {[%clk 0:15:00]} 4. g3 {[%clk 0:15:00]}  Bb4+ {[%clk 0:15:00]} 5. Bd2 {[%clk 0:14:46]}  c5 {[%clk 0:15:47]} 6. Bxb4 {[%clk 0:14:46]}  cxb4 {[%clk 0:15:47]} 7. Bg2 {[%clk 0:14:46]}  Bb7 {[%clk 0:15:47]} 8. O-O {[%clk 0:14:46]}  O-O {[%clk 0:15:47]} 9. Nbd2 {[%clk 0:14:46]}  d6 {[%clk 0:15:47]} 10. Re1 {[%clk 0:14:46]}  Qe7 {[%clk 0:16:11]} 11. Qc2 {[%clk 0:12:28]}  Nbd7 {[%clk 0:16:11]} 12. a3 {[%clk 0:12:28]}  bxa3 {[%clk 0:16:11]} 13. Rxa3 {[%clk 0:12:28]}  a5 {[%clk 0:16:11]} 14. Rc3 {[%clk 0:11:05]}  Rac8 {[%clk 0:16:05]} 15. Qb3 {[%clk 0:08:35]}  e5 {[%clk 0:16:09]} 16. Qa3 {[%clk 0:07:23]}  Rfe8 {[%clk 0:15:08]} 17. Nxe5 {[%clk 0:07:23]}  dxe5 {[%clk 0:15:08]} 18. Qxe7 {[%clk 0:07:23]}  Rxe7 {[%clk 0:15:08]} 19. Bxb7 {[%clk 0:07:23]}  exd4 {[%clk 0:15:08]} 20. Bxc8 {[%clk 0:04:45]}  dxc3 {[%clk 0:15:06]} 21. bxc3 {[%clk 0:04:45]}  Nc5 {[%clk 0:15:06]} 22. Bf5 {[%clk 0:04:45]}  Na4 {[%clk 0:15:23]} 23. Nb1 {[%clk 0:03:20]}  Ne4 {[%clk 0:15:23]} 24. f3 {[%clk 0:03:12]}  Nexc3 {[%clk 0:13:23]} 25. Nxc3 {[%clk 0:03:12]}  Nxc3 {[%clk 0:13:23]} 26. Bd3 {[%clk 0:03:12]}  g6 {[%clk 0:13:27]} 27. Kf2 {[%clk 0:00:52]}  Kg7 {[%clk 0:13:27]} 28. Ra1 {[%clk 0:00:52]}  Kf6 {[%clk 0:13:27]} 29. Ke1 {[%clk 0:00:52]}  Ke5 {[%clk 0:13:27]} 30. e3 {[%clk 0:00:52]}  b5 {[%clk 0:10:46]} 31. Rxa5 {[%clk 0:00:57]}  Kd6 {[%clk 0:10:46]} 32. cxb5 {[%clk 0:00:57]}  Nd5 {[%clk 0:10:46]} 33. e4 {[%clk 0:00:57]}  Nb6 {[%clk 0:09:46]} 34. Kd2 {[%clk 0:00:27]}  Kc5 {[%clk 0:09:46]} 35. Ke3 {[%clk 0:00:27]}  f5 {[%clk 0:09:46]} 36. Ra1 {[%clk 0:00:27]}  fxe4 {[%clk 0:09:46]} 37. Rc1+ {[%clk 0:00:27]}  Kb4 {[%clk 0:09:46]} 38. fxe4 {[%clk 0:00:27]}  Nd5+ {[%clk 0:09:46]} 39. Kd4 {[%clk 0:00:27]}  Nc3 {[%clk 0:09:46]} 40. Ke3 {[%clk 0:00:27]}  Re6 {[%clk 0:08:21]} 41. Rc2 {[%clk 0:00:37]}  Nd1+ {[%clk 0:08:21]} 42. Kd2 {[%clk 0:00:37]}  Nf2 {[%clk 0:08:21]} 43. Rb2+ {[%clk 0:00:37]}  Kc5 {[%clk 0:08:21]} 44. Rc2+ {[%clk 0:00:37]}  Kb4 {[%clk 0:06:57]} 45. Ke3 {[%clk 0:00:21]}  Nd1+ {[%clk 0:06:57]} 46. Kf4 {[%clk 0:00:21]}  Rd6 {[%clk 0:05:10]} 47. Be2 {[%clk 0:00:22]}  Nc3 {[%clk 0:05:10]} 48. Ke3 {[%clk 0:00:22]}  Re6 {[%clk 0:05:10]} 49. Bd3 {[%clk 0:00:22]}  Nd1+ {[%clk 0:05:10]} 1/2-1/2


[Site "http://www.Chess.com"]

[Event "FIDE World Rapid Chess Championship 2021"]
[White "Cuenca Jimenez, Jose Fernando"]
[Black "Kobalia, Mikhail"]
[WhiteFideId "2255570"]
[BlackFideId "4119150"]
[WhiteElo "2421"]
[BlackElo "2543"]
[Result "0-1"]
[Round "11"]
[TimeControl "900+10"]
[Date "2021.12.28"]
[WhiteClock "0:00:39"]
[BlackClock "0:04:21"]

1. d4 {[%clk 0:15:00]}  d5 {[%clk 0:15:00]} 2. c4 {[%clk 0:15:00]}  c6 {[%clk 0:15:00]} 3. Nf3 {[%clk 0:15:00]}  Nf6 {[%clk 0:15:00]} 4. e3 {[%clk 0:15:00]}  Bf5 {[%clk 0:15:00]} 5. Nc3 {[%clk 0:15:00]}  e6 {[%clk 0:15:00]} 6. Bd3 {[%clk 0:15:00]}  Bxd3 {[%clk 0:15:43]} 7. Qxd3 {[%clk 0:16:07]}  Nbd7 {[%clk 0:15:43]} 8. O-O {[%clk 0:16:07]}  Bb4 {[%clk 0:15:43]} 9. Bd2 {[%clk 0:16:07]}  Ba5 {[%clk 0:15:43]} 10. a3 {[%clk 0:14:43]}  O-O {[%clk 0:13:55]} 11. b4 {[%clk 0:14:43]}  Bc7 {[%clk 0:13:55]} 12. e4 {[%clk 0:14:43]}  dxc4 {[%clk 0:13:55]} 13. Qxc4 {[%clk 0:14:43]}  e5 {[%clk 0:13:55]} 14. Be3 {[%clk 0:14:03]}  exd4 {[%clk 0:13:16]} 15. Bxd4 {[%clk 0:14:03]}  Ng4 {[%clk 0:13:16]} 16. Rad1 {[%clk 0:12:20]}  Qe7 {[%clk 0:12:14]} 17. h3 {[%clk 0:10:43]}  Nde5 {[%clk 0:11:02]} 18. Nxe5 {[%clk 0:07:07]}  Nxe5 {[%clk 0:10:24]} 19. Qe2 {[%clk 0:07:07]}  Rfd8 {[%clk 0:10:24]} 20. Bc5 {[%clk 0:07:07]}  Qf6 {[%clk 0:09:52]} 21. f4 {[%clk 0:04:09]}  Rxd1 {[%clk 0:09:52]} 22. Nxd1 {[%clk 0:04:09]}  Ng6 {[%clk 0:09:52]} 23. g3 {[%clk 0:03:30]}  Nf8 {[%clk 0:08:52]} 24. Nf2 {[%clk 0:02:24]}  a5 {[%clk 0:07:11]} 25. b5 {[%clk 0:02:24]}  Qc3 {[%clk 0:07:11]} 26. Qe3 {[%clk 0:02:19]}  Qxe3 {[%clk 0:05:28]} 27. Bxe3 {[%clk 0:02:19]}  cxb5 {[%clk 0:05:28]} 28. Rb1 {[%clk 0:02:19]}  b4 {[%clk 0:05:28]} 29. axb4 {[%clk 0:02:19]}  a4 {[%clk 0:05:28]} 30. b5 {[%clk 0:02:19]}  Nd7 {[%clk 0:05:28]} 31. Kf1 {[%clk 0:02:19]}  a3 {[%clk 0:05:28]} 32. Ra1 {[%clk 0:02:19]}  Bb6 {[%clk 0:05:28]} 33. Bxb6 {[%clk 0:02:19]}  Nxb6 {[%clk 0:05:28]} 34. Ke2 {[%clk 0:02:19]}  h5 {[%clk 0:05:51]} 35. Nd3 {[%clk 0:01:32]}  Nc4 {[%clk 0:05:51]} 36. Kd1 {[%clk 0:01:32]}  Nd6 {[%clk 0:05:51]} 37. Kc2 {[%clk 0:01:32]}  Nxb5 {[%clk 0:05:51]} 38. Kb3 {[%clk 0:00:39]}  Nd4+ {[%clk 0:04:21]} 39. Kc4 {[%clk 0:00:39]}  Ra4+ {[%clk 0:04:21]} 40. Kc3 {[%clk 0:00:39]}  b5 {[%clk 0:04:21]} 41. Nb4 {[%clk 0:00:39]}  Rxb4 {[%clk 0:04:21]} 42. Kxb4 {[%clk 0:00:39]}  Nc2+ {[%clk 0:04:21]} 0-1


[Site "http://www.Chess.com"]

[Event "FIDE World Rapid Chess Championship 2021"]
[White "Van Foreest, Lucas"]
[Black "Gagunashvili, Merab"]
[WhiteFideId "1039792"]
[BlackFideId "13601652"]
[WhiteElo "2374"]
[BlackElo "2538"]
[Result "0-1"]
[Round "11"]
[TimeControl "900+10"]
[Date "2021.12.28"]
[WhiteClock "0:08:03"]
[BlackClock "0:04:36"]

1. e4 {[%clk 0:15:00]}  e5 {[%clk 0:15:00]} 2. Nf3 {[%clk 0:15:00]}  Nc6 {[%clk 0:15:00]} 3. Bc4 {[%clk 0:15:00]}  Bc5 {[%clk 0:15:00]} 4. Nc3 {[%clk 0:15:00]}  Nf6 {[%clk 0:15:00]} 5. d3 {[%clk 0:15:00]}  h6 {[%clk 0:15:00]} 6. O-O {[%clk 0:15:00]}  O-O {[%clk 0:15:00]} 7. Nd5 {[%clk 0:15:00]}  d6 {[%clk 0:15:00]} 8. c3 {[%clk 0:15:00]}  Nxd5 {[%clk 0:15:47]} 9. Bxd5 {[%clk 0:16:08]}  Ne7 {[%clk 0:15:47]} 10. Bb3 {[%clk 0:16:08]}  Ng6 {[%clk 0:15:47]} 11. d4 {[%clk 0:16:08]}  Bb6 {[%clk 0:15:47]} 12. dxe5 {[%clk 0:16:08]}  dxe5 {[%clk 0:15:47]} 13. Qxd8 {[%clk 0:16:08]}  Rxd8 {[%clk 0:15:47]} 14. h3 {[%clk 0:16:08]}  Bd7 {[%clk 0:15:47]} 15. Re1 {[%clk 0:16:08]}  Kf8 {[%clk 0:15:47]} 16. Nd2 {[%clk 0:16:08]}  Nf4 {[%clk 0:16:11]} 17. Bc2 {[%clk 0:14:28]}  Be6 {[%clk 0:16:11]} 18. Nf3 {[%clk 0:14:28]}  Ng6 {[%clk 0:16:11]} 19. b3 {[%clk 0:14:28]}  f6 {[%clk 0:16:11]} 20. a4 {[%clk 0:14:28]}  a5 {[%clk 0:15:05]} 21. Ba3+ {[%clk 0:13:59]}  Kf7 {[%clk 0:15:05]} 22. Rad1 {[%clk 0:13:59]}  Nf4 {[%clk 0:15:05]} 23. Kf1 {[%clk 0:13:59]}  h5 {[%clk 0:15:05]} 24. Bc1 {[%clk 0:13:59]}  g5 {[%clk 0:15:05]} 25. Bxf4 {[%clk 0:12:36]}  gxf4 {[%clk 0:14:41]} 26. Rxd8 {[%clk 0:12:36]}  Rxd8 {[%clk 0:14:41]} 27. Rd1 {[%clk 0:12:36]}  Rb8 {[%clk 0:14:41]} 28. Nd2 {[%clk 0:12:36]}  Bc5 {[%clk 0:14:41]} 29. Bd3 {[%clk 0:12:36]}  f3 {[%clk 0:14:41]} 30. Nxf3 {[%clk 0:12:33]}  Bxb3 {[%clk 0:13:30]} 31. Ra1 {[%clk 0:12:33]}  Rd8 {[%clk 0:13:30]} 32. Ke2 {[%clk 0:12:33]}  b6 {[%clk 0:12:09]} 33. Bb5 {[%clk 0:11:40]}  Rd6 {[%clk 0:09:24]} 34. Nd2 {[%clk 0:10:27]}  Be6 {[%clk 0:07:54]} 35. Nc4 {[%clk 0:10:27]}  Rd8 {[%clk 0:07:54]} 36. Ne3 {[%clk 0:10:27]}  Rg8 {[%clk 0:07:54]} 37. g3 {[%clk 0:08:55]}  h4 {[%clk 0:04:38]} 38. gxh4 {[%clk 0:08:53]}  Rh8 {[%clk 0:04:38]} 39. Nf5 {[%clk 0:08:53]}  Bxf5 {[%clk 0:04:38]} 40. exf5 {[%clk 0:08:53]}  Rxh4 {[%clk 0:04:38]} 41. Rd1 {[%clk 0:08:53]}  Bd6 {[%clk 0:04:38]} 42. Rd3 {[%clk 0:08:53]}  e4 {[%clk 0:04:38]} 43. Bc4+ {[%clk 0:08:53]}  Ke7 {[%clk 0:04:38]} 44. Re3 {[%clk 0:08:49]}  Bc5 {[%clk 0:04:04]} 45. Rg3 {[%clk 0:08:49]}  Rf4 {[%clk 0:04:04]} 46. Rg2 {[%clk 0:08:49]}  e3 {[%clk 0:04:04]} 47. Bb5 {[%clk 0:08:49]}  exf2 {[%clk 0:04:04]} 48. Kf1 {[%clk 0:08:49]}  Re4 {[%clk 0:04:04]} 49. Rg7+ {[%clk 0:08:49]}  Kf8 {[%clk 0:04:04]} 50. Rxc7 {[%clk 0:08:49]}  Re1+ {[%clk 0:04:04]} 51. Kg2 {[%clk 0:08:49]}  Rg1+ {[%clk 0:04:04]} 52. Kf3 {[%clk 0:08:03]}  f1=Q+ {[%clk 0:04:36]} 53. Bxf1 {[%clk 0:08:03]}  Rxf1+ {[%clk 0:04:36]} 54. Kg4 {[%clk 0:08:03]}  Rg1+ {[%clk 0:04:36]} 55. Kf3 {[%clk 0:08:03]}  Rg3+ {[%clk 0:04:36]} 56. Ke4 {[%clk 0:08:03]}  Rxh3 {[%clk 0:04:36]} 57. Rc8+ {[%clk 0:08:03]}  Kg7 {[%clk 0:04:36]} 58. Rc7+ {[%clk 0:08:03]}  Kh6 {[%clk 0:04:36]} 59. Rf7 {[%clk 0:08:03]}  Rh4+ {[%clk 0:04:36]} 0-1


[Site "http://www.Chess.com"]

[Event "FIDE World Rapid Chess Championship 2021"]
[White "Blohberger, Felix"]
[Black "Christiansen, Johan-Sebastian"]
[WhiteFideId "1632051"]
[BlackFideId "1512668"]
[WhiteElo "2409"]
[BlackElo "2522"]
[Result "0-1"]
[Round "11"]
[TimeControl "900+10"]
[Date "2021.12.28"]
[WhiteClock "0:03:02"]
[BlackClock "0:03:56"]

1. d4 {[%clk 0:15:00]}  d5 {[%clk 0:15:00]} 2. Nf3 {[%clk 0:15:00]}  Nf6 {[%clk 0:15:00]} 3. Bf4 {[%clk 0:15:00]}  c5 {[%clk 0:15:00]} 4. e3 {[%clk 0:15:00]}  Nc6 {[%clk 0:15:00]} 5. Nbd2 {[%clk 0:15:00]}  cxd4 {[%clk 0:15:00]} 6. exd4 {[%clk 0:15:00]}  Bf5 {[%clk 0:15:00]} 7. Bb5 {[%clk 0:15:00]}  Qb6 {[%clk 0:15:18]} 8. c4 {[%clk 0:15:59]}  a6 {[%clk 0:15:18]} 9. Bxc6+ {[%clk 0:15:59]}  bxc6 {[%clk 0:15:18]} 10. Qa4 {[%clk 0:15:13]}  Nd7 {[%clk 0:14:21]} 11. O-O {[%clk 0:15:13]}  f6 {[%clk 0:14:21]} 12. Rfe1 {[%clk 0:13:13]}  g5 {[%clk 0:13:56]} 13. Bd6 {[%clk 0:13:13]}  Kf7 {[%clk 0:13:56]} 14. Ba3 {[%clk 0:13:13]}  h5 {[%clk 0:13:56]} 15. Nf1 {[%clk 0:10:23]}  Qb7 {[%clk 0:12:08]} 16. Ne3 {[%clk 0:10:23]}  Bg6 {[%clk 0:12:08]} 17. Rac1 {[%clk 0:10:23]}  e6 {[%clk 0:10:23]} 18. Bxf8 {[%clk 0:08:32]}  Rhxf8 {[%clk 0:10:23]} 19. Rc3 {[%clk 0:08:32]}  Rfc8 {[%clk 0:10:23]} 20. Rec1 {[%clk 0:08:32]}  Kg7 {[%clk 0:09:28]} 21. Qa3 {[%clk 0:07:51]}  Bf7 {[%clk 0:09:28]} 22. Qe7 {[%clk 0:07:51]}  Re8 {[%clk 0:05:11]} 23. Qd6 {[%clk 0:07:19]}  Nf8 {[%clk 0:05:11]} 24. cxd5 {[%clk 0:07:24]}  cxd5 {[%clk 0:03:53]} 25. Rc7 {[%clk 0:07:24]}  Qxb2 {[%clk 0:03:53]} 26. h4 {[%clk 0:03:02]}  Rad8 {[%clk 0:03:56]} 27. Qxa6 {[%clk 0:03:02]}  g4 {[%clk 0:03:56]} 28. Qa7 {[%clk 0:03:02]}  Rd7 {[%clk 0:03:56]} 29. Rxd7 {[%clk 0:03:02]}  Qxc1+ {[%clk 0:03:56]} 0-1


[Site "http://www.Chess.com"]

[Event "FIDE World Rapid Chess Championship 2021"]
[White "Michalik, Peter"]
[Black "Erigaisi, Arjun"]
[WhiteFideId "14907526"]
[BlackFideId "35009192"]
[WhiteElo "2515"]
[BlackElo "2397"]
[Result "1/2-1/2"]
[Round "11"]
[TimeControl "900+10"]
[Date "2021.12.28"]
[WhiteClock "0:02:25"]
[BlackClock "0:00:00"]

1. e4 {[%clk 0:15:00]}  c5 {[%clk 0:15:00]} 2. Nf3 {[%clk 0:15:00]}  d6 {[%clk 0:15:00]} 3. d4 {[%clk 0:15:00]}  cxd4 {[%clk 0:15:00]} 4. Nxd4 {[%clk 0:15:00]}  Nf6 {[%clk 0:15:00]} 5. Nc3 {[%clk 0:15:00]}  g6 {[%clk 0:15:00]} 6. Be3 {[%clk 0:15:00]}  Bg7 {[%clk 0:15:00]} 7. f3 {[%clk 0:15:00]}  O-O {[%clk 0:15:00]} 8. Qd2 {[%clk 0:15:00]}  Nc6 {[%clk 0:15:00]} 9. O-O-O {[%clk 0:15:00]}  d5 {[%clk 0:15:00]} 10. exd5 {[%clk 0:15:00]}  Nxd5 {[%clk 0:15:00]} 11. Nxc6 {[%clk 0:15:00]}  bxc6 {[%clk 0:15:00]} 12. Bd4 {[%clk 0:15:00]}  e5 {[%clk 0:15:00]} 13. Bc5 {[%clk 0:15:00]}  Re8 {[%clk 0:15:00]} 14. Ne4 {[%clk 0:11:38]}  Qc7 {[%clk 0:15:01]} 15. h4 {[%clk 0:11:38]}  h6 {[%clk 0:15:01]} 16. h5 {[%clk 0:11:38]}  g5 {[%clk 0:15:01]} 17. Bc4 {[%clk 0:12:59]}  Be6 {[%clk 0:11:13]} 18. Bd6 {[%clk 0:11:22]}  Qb6 {[%clk 0:10:16]} 19. Bc5 {[%clk 0:11:22]}  Qc7 {[%clk 0:10:16]} 20. g4 {[%clk 0:11:22]}  Red8 {[%clk 0:10:16]} 21. Qf2 {[%clk 0:10:06]}  a5 {[%clk 0:09:15]} 22. a4 {[%clk 0:10:06]}  Rab8 {[%clk 0:09:15]} 23. Rd3 {[%clk 0:10:06]}  f5 {[%clk 0:08:04]} 24. gxf5 {[%clk 0:08:00]}  Bxf5 {[%clk 0:06:21]} 25. Rb3 {[%clk 0:08:00]}  Rxb3 {[%clk 0:06:21]} 26. Bxb3 {[%clk 0:08:00]}  Kh8 {[%clk 0:06:21]} 27. Kb1 {[%clk 0:08:00]}  Bh7 {[%clk 0:06:21]} 28. Ka2 {[%clk 0:06:58]}  Qf7 {[%clk 0:00:00]} 29. Qg3 {[%clk 0:06:58]}  Qf5 {[%clk 0:00:00]} 30. Re1 {[%clk 0:06:06]}  Bg8 {[%clk 0:00:00]} 31. Qg4 {[%clk 0:06:06]}  Qf7 {[%clk 0:00:00]} 32. Ka1 {[%clk 0:06:06]}  Rb8 {[%clk 0:00:00]} 33. Nd6 {[%clk 0:04:53]}  Qe7 {[%clk 0:00:00]} 34. Ne4 {[%clk 0:04:53]}  Qd8 {[%clk 0:00:00]} 35. Qf5 {[%clk 0:03:08]}  Qe8 {[%clk 0:00:00]} 36. Qg4 {[%clk 0:03:04]}  Be6 {[%clk 0:00:00]} 37. Qg3 {[%clk 0:03:04]}  Qxh5 {[%clk 0:00:00]} 38. Bd6 {[%clk 0:03:04]}  Rxb3 {[%clk 0:00:00]} 39. cxb3 {[%clk 0:03:04]}  Nf4 {[%clk 0:00:00]} 40. Nc5 {[%clk 0:03:04]}  Bd5 {[%clk 0:00:00]} 41. Bxe5 {[%clk 0:03:04]}  Bxe5 {[%clk 0:00:00]} 42. Rxe5 {[%clk 0:03:04]}  Bxf3 {[%clk 0:00:00]} 43. Qe1 {[%clk 0:03:04]}  Ne2 {[%clk 0:00:00]} 44. Qd2 {[%clk 0:03:04]}  Qh1+ {[%clk 0:00:00]} 45. Ka2 {[%clk 0:03:04]}  Nc1+ {[%clk 0:00:00]} 46. Ka3 {[%clk 0:02:25]}  Nd3 {[%clk 0:00:00]} 47. Re8+ {[%clk 0:02:25]}  Kg7 {[%clk 0:00:00]} 48. Qc3+ {[%clk 0:02:25]}  Kf7 {[%clk 0:00:00]} 49. Rf8+ {[%clk 0:02:25]}  Kxf8 {[%clk 0:00:00]} 50. Qf6+ {[%clk 0:02:25]}  Kg8 {[%clk 0:00:00]} 51. Qg6+ {[%clk 0:02:25]}  Kh8 {[%clk 0:00:00]} 52. Qf6+ {[%clk 0:02:25]}  Kg8 {[%clk 0:00:00]} 53. Qg6+ {[%clk 0:02:25]}  Kh8 {[%clk 0:00:00]} 54. Qf6+ {[%clk 0:02:25]}  Kg8 {[%clk 0:00:00]} 1/2-1/2


[Site "http://www.Chess.com"]